Cogmind - Beta 13 X1 @@@ ROGUE MODE // 2023.09.20 @ 20:48:56 Player: f3-rnm Result: Destroyed by OY-KCX(R) with Subdweller Machine Gun Performance ------------- Evolutions (0) 0 Regions Visited (2) 400 Robots Destroyed (35) 175 Value Destroyed (978) 978 Prototype IDs (10) 200 Alien Tech Used (0) 0 Bonus (0) 0 TOTAL SCORE: 1753 Bonus ------- None Cogmind --------- Core Integrity 0/250 Matter 106/300 Energy 69/100 System Corruption 2% Temperature Cool (0) Movement Treading (160) Location -10/Subcaves Parts ------- > --- POWER (1) -------- (None) > --- PROPULSION (2) --- Spiked Treads Spiked Treads > --- UTILITY (2) ------ Hardened Light Armor Plating Makeshift Armor Plating > --- WEAPON (2) ------- Slug Cannon Slug Cannon > --- INVENTORY (5) ---- Power Bank Subdweller Machine Gun Subdweller Shrapnel Launcher Mace Peak State ------------ > --- POWER ------------ Subdweller Power Source > --- PROPULSION ------- Spiked Treads Spiked Treads > --- UTILITY ---------- Hardened Light Armor Plating Makeshift Armor Plating > --- WEAPON ----------- Subdweller Machine Gun Barrage Gun > --- INVENTORY -------- Power Bank Slug Cannon Slug Cannon Subdweller Shrapnel Launcher Mace [Rating: 19] Favorites ----------- Power Ion Engine Engine Ion Engine Propulsion Light Treads Treads Light Treads Utility Hardened Light Armor Plating Device Cobbler Unit Storage High-capacity Storage Unit Processor Targeting Computer Protection Hardened Light Armor Plating Weapon Small Laser Energy Gun Small Laser Energy Cannon Subdweller Beam Cannon Ballistic Gun Subdweller Machine Gun Ballistic Cannon Battle Cannon Launcher Subdweller Shrapnel Launcher Impact Weapon Mace Build | -11 -10 -10 ------- Run | Jun Mat Sub Slots Evolved . | . . . Power . | . . . Propulsion . | . . . Utility . | . . . Weapon . | . . . Parts Attached 57 | 6 4 47 Power 4 | 1 . 3 Engine 4 | 1 . 3 Core . | . . . Reactor . | . . . Propulsion 5 | 2 1 2 Treads 5 | 2 1 2 Leg . | . . . Wheel . | . . . Hover . | . . . Flight . | . . . Utility 17 | 1 2 14 Device 1 | . . 1 Storage 2 | 1 1 . Processor 1 | . 1 . Hackware . | . . . Protection 13 | . . 13 Artifact . | . . . Weapon 31 | 2 1 28 Energy Gun 1 | 1 . . Energy Cannon 3 | . . 3 Ballistic Gun 13 | 1 . 12 Ballistic Cannon 6 | . . 6 Launcher 1 | . . 1 Special Weapon . | . . . Impact Weapon 7 | . 1 6 Slashing Weapon . | . . . Piercing Weapon . | . . . Special Melee Weapon . | . . . Unidentified Prototypes . | . . . Parts Lost 9 | . . 9 Power 2 | . . 2 Propulsion 1 | . . 1 Utility 3 | . . 3 Weapon 3 | . . 3 Highest Loss Streak 2 | . . 2 To Critical Strikes . | . . . Average Slot Usage (%) 94 | . 99 89 Engine 10 | . 14 8 Treads 27 | . 27 27 Storage 7 | . 14 . Processor 6 | . 13 . Protection 12 | . . 24 Energy Gun 7 | . 14 . Ballistic Gun 12 | . 9 15 Ballistic Cannon 2 | . . 4 Impact Weapon 4 | . 4 5 Naked Turns . | . . . Heaviest Build 52 | 13 48 52 Greatest Support 40 | 40 40 40 Greatest Overweight (x) 2 | 2 1 1 Average Overweight (x) . | . . . Largest Inventory Capacity 20 | 8 20 20 Average Capacity 12 | 5 19 5 Most Carried 20 | 3 20 19 Average Carried 10 | 1 15 5 Final Capacity 20 | 8 20 5 Final Carried 19 | 1 19 4 Class Distribution -------------------- 85% | Mutant 14% | Derelict-Mutant Dominant Class ---------------- Mutant | -10/Materials Mutant | -10/Subcaves Resources | -11 -10 -10 ----------- Run | Jun Mat Sub Matter Collected 1354 | 223 312 819 Remotely . | . . . Salvage Created 1205 | . 492 713 Parts 68 | . 23 45 Haulers Intercepted 2 | . 2 . Recyclers Shooed . | . . . Parts Field Recycled . | . . . Retrieved Matter . | . . . Parts Self-Destructed 10 | . . 10 Prevented . | . . . Kills | -11 -10 -10 ------- Run | Jun Mat Sub Combat Hostiles Destroyed 28 | . 10 18 Guns 21 | . 10 11 Cannons 5 | . . 5 AOE 2 | . . 2 Classes Destroyed 9 | . 7 2 Worker 1 | . 1 . Builder 2 | . 2 . Hauler 2 | . 2 . Operator 1 | . 1 . Watcher 1 | . 1 . Swarmer 6 | . 6 . Grunt 8 | . 4 4 Cobbler 1 | . . 1 Subdweller 14 | . . 14 Best Kill Streak 5 | . 5 5 Combat Bots Only 5 | . 5 5 Max Kills in Single Turn 2 | . 2 2 Gunslinging . | . . . Exploded 2 | . . 2 Melee . | . . . Uniques/NPCs Destroyed . | . . . Combat | -11 -10 -10 -------- Run | Jun Mat Sub Damage Taken 2226 | . 316 1910 Core 256 | . 56 200 Absorbed by Shields . | . . . Regen/Repaired (Parts) 101 | . 101 . Core Remaining (%) 100 | 100 . . Volleys Fired 129 | . 48 81 Largest 2 | . 2 2 Hottest 160 | . 60 160 Shots Fired 252 | . 99 153 Gun 207 | . 99 108 Cannon 39 | . . 39 Launcher 6 | . . 6 Special . | . . . Kinetic 178 | . 49 129 Thermal 74 | . 50 24 Explosive . | . . . Electromagnetic . | . . . Robot Hit Streak 42 | . 7 42 Robot Miss Streak 4 | . 3 4 Penetration Max . | . . . Secondary Targets 1 | . 1 . Max Gunslinging Chain 1 | . 1 . Shots Hit Robots 172 | . 60 112 Core Hits 57 | . 23 34 Critical Kills 1 | . . 1 Critical Parts Destroyed 3 | . 2 1 Critical Strikes 7 | . 2 5 Destroy 5 | . 1 4 Smash 2 | . 1 1 Melee Attacks 58 | . 9 49 Impact 58 | . 9 49 Slashing . | . . . Piercing . | . . . Sneak Attacks 5 | . 5 . Combat Hostiles . | . . . Follow-up Attacks . | . . . Damage Inflicted 3846 | . 925 2921 Guns 2122 | . 669 1453 Cannons 653 | . . 653 Explosions 439 | . . 439 Melee 632 | . 256 376 Ramming . | . . . Kinetic 2547 | . 342 2205 Thermal 667 | . 327 340 Explosive . | . . . Electromagnetic . | . . . Impact 632 | . 256 376 Slashing . | . . . Piercing . | . . . Highest Corruption 2 | . 2 2 Average Corruption 2 | . 2 2 Corruption Purged . | . . . Corruption Blocked . | . . . Effects 85 | . 39 46 Message Errors 24 | . 9 15 Matter Fused 20 | . 11 9 Heat Flow Errors 14 | . 6 8 Energy Discharges 9 | . 4 5 Parts Fused 1 | . 1 . Data Loss (minor) 7 | . 4 3 Data Loss (major) 3 | . . 3 Misfires 5 | . 3 2 Alerts 2 | . 1 1 Overload Shots . | . . . Overflow Damage 118 | . 90 28 Projectiles . | . . . Explosions . | . . . Melee 118 | . 90 28 Knockbacks 7 | . 2 5 Impact 3 | . 2 1 Kinetic 4 | . . 4 Secondary . | . . . Self-Inflicted Damage . | . . . Shots . | . . . Rammed . | . . . Targets Rammed . | . . . Kicked . | . . . Crushed . | . . . Highest Temperature 263 | . 263 258 Average Temperature 72 | . 74 68 Received Heat Transfer 868 | . 171 697 Siege Activations . | . . . Robots Corrupted . | . . . Combat Hostiles . | . . . Parts Fried 9 | . 6 3 Impact Corruptions 10 | . 7 3 Robots Melted . | . . . Combat Hostiles . | . . . Parts Melted . | . . . Heat Transferred 1258 | . 725 533 Parts Sabotaged . | . . . Parts Stolen . | . . . Parts Stripped . | . . . Power Chain Reactions . | . . . Missiles Intercepted . | . . . Alert | -11 -10 -10 ------- Run | Jun Mat Sub Peak Influence 132 | . 132 . Initial . | . . . Average 19 | . 20 . Maximum Alert Level . | . . . Low Security (%) 100 | 100 100 . Level 1 . | . . . Level 2 . | . . . Level 3 . | . . . Level 4 . | . . . Level 5 . | . . . High Security . | . . . Max Security . | . . . Squads Dispatched 1 | . 1 . Investigation . | . . . Extermination . | . . . Reinforcement 1 | . 1 . Assault . | . . . Garrison . | . . . Intercept . | . . . Searches Triggered . | . . . Construction Impeded . | . . . Haulers Reinforced . | . . . Active Scanning Responses . | . . . Cargo Convoy Interrupts . | . . . Stealth | -11 -10 -10 --------- Run | Jun Mat Sub Distress Signals . | . . . Communications Jammed . | . . . Distress Signals . | . . . Times Spotted 47 | . 28 19 Peak Tracking Total 4 | . 4 3 Tactical Retreats . | . . . Traps | -11 -10 -10 ------- Run | Jun Mat Sub Traps Triggered 2 | . 1 1 Indirectly . | . . . Trap Hack Attempts . | . . . Triggered . | . . . Disarmed . | . . . Reprogrammed . | . . . Reused . | . . . Traps Extracted . | . . . Installed . | . . . Triggered . | . . . Machines | -11 -10 -10 ---------- Run | Jun Mat Sub Machines Disabled 1 | . . 1 Max in Single Turn 1 | . . 1 Machines Repaired . | . . . Machines Sabotaged . | . . . Overloaded Fab Kills . | . . . Hacking | -11 -10 -10 --------- Run | Jun Mat Sub Machines Accessed 7 | . 6 1 Terminals 3 | . 3 . Fabricators . | . . . Repair Stations 1 | . 1 . Recycling Units 2 | . 2 . Scanalyzers . | . . . Garrison Access . | . . . Total Hacks 20 | . 19 1 Successful 12 | . 11 1 Failed 8 | . 8 . Catastrophic 5 | . 5 . Database Lockouts . | . . . Manual 9 | . 9 . Terminals 13 | . 13 . Fabricators . | . . . Repair Stations 2 | . 2 . Recycling Units 4 | . 4 . Scanalyzers . | . . . Garrison Access . | . . . Terminal Hacks 8 | . 7 1 Robot Analysis 2 | . 2 . Alert Level 2 | . 2 . Dispatch Records 1 | . 1 . Transport Status 1 | . 1 . Hauler Manifests 1 | . 1 . Derelict Proto ID Bank 1 | . . 1 Fabricator Hacks . | . . . Repair Station Hacks 2 | . 2 . Scan Component 1 | . 1 . Repair 1 | . 1 . Recycling Unit Hacks 2 | . 2 . Report Inventory 1 | . 1 . Retrieve Components 1 | . 1 . Scanalyzer . | . . . Garrison Access Hacks . | . . . Unauthorized Hacks . | . . . Terminals . | . . . Fabricators . | . . . Repair Stations . | . . . Recycling Units . | . . . Scanalyzers . | . . . Garrison Access . | . . . Data Cores Recovered . | . . . Used . | . . . Hacking Detections 3 | . 3 . Full Trace Events 2 | . 2 . Feedback Events . | . . . Feedback Blocked . | . . . Robot Schematics Acquired . | . . . Robots Built . | . . . Authchips . | . . . Time . | . . . Total Robot Build Rating . | . . . Part Schematics Acquired . | . . . Parts Built . | . . . Authchips . | . . . Time . | . . . Total Part Build Rating . | . . . Parts Repaired 1 | . 1 . Time 26 | . 26 . Parts Recycled . | . . . Recycled Matter . | . . . Retrieved Matter . | . . . Retrieved Components 2 | . 2 . Parts Scanalyzed . | . . . Part Schematics Acquired . | . . . Parts Damaged . | . . . Bothacking | -11 -10 -10 ------------ Run | Jun Mat Sub Used RIF Installer . | . . . Robots Hacked . | . . . Non-combat . | . . . Combat . | . . . Robot Hacks Applied . | . . . Relay Couplers Released . | . . . Fabnet Peak Effective % . | . . . Robots Rewired . | . . . Allies Hacked . | . . . Hacks Repelled . | . . . Allies | -11 -10 -10 -------- Run | Jun Mat Sub Total Allies . | . . . Largest Group . | . . . Highest-Rated Group . | . . . Highest-Rated Ally . | . . . Total Orders . | . . . Ally Attacks . | . . . Total Damage . | . . . Kills . | . . . Allies Corrupted . | . . . Allies Melted . | . . . Intel | -11 -10 -10 ------- Run | Jun Mat Sub Robot Analysis Total 2 | . 2 . Derelict Logs Recovered 3 | . . 3 Drone Launches . | . . . Drone Recoveries . | . . . Exploration | -11 -10 -10 ------------- Run | Jun Mat Sub Turns Passed 6677 | 81 3247 3349 Spaces Moved 3087 | 54 1296 1737 Core 25 | 25 . . Treads 3062 | 29 1296 1737 Legs . | . . . Wheels . | . . . Hover . | . . . Flight . | . . . Fastest Speed 50 | 50 160 160 Average Speed 191 | 127 232 163 Slowest Speed 240 | 160 240 240 Overloaded Moves . | . . . Propulsion Burnouts . | . . . Robots Hopped . | . . . Cave-ins Triggered . | . . . Exploration Rate (%) 53 | 5 88 67 Regions Visited 2 Branch Regions 1 Pre-discovered Areas 1 | . . 1 Known Exits Taken . | . . . Unknown Exits Taken 2 | 1 1 . Scrap Searched 7 | . . 7 Spaces Dug 8 | . 1 7 Terrain Destroyed 98 | . 1 97 Melee 8 | . 1 7 Projectile 6 | . . 6 AOE 84 | . . 84 Terrain Rammed . | . . . Walls Destroyed . | . . . Machines Disabled . | . . . Actions | -11 -10 -10 --------- Run | Jun Mat Sub Total 3491 | 66 1419 2006 Wait 91 | . 42 49 Move 3085 | 53 1295 1737 Hop . | . . . Pick Up 45 | 7 20 18 Fast Attach 11 | . 1 10 Attach 16 | 6 1 9 Detach 1 | . . 1 Swap 30 | . 2 28 Drop 25 | . 1 24 Fire 129 | . 48 81 Melee 58 | . 9 49 Ram . | . . . Kick . | . . . Crush . | . . . Escape Stasis . | . . . Rewire . | . . . Trap . | . . . Miscellaneous . | . . . Route ------- -11/Junkyard -10/Materials (discovered 4 exits: [*Mat x2] / [*Min] / *Sub) -10/Subcaves (discovered 1 exit: [*Mat]) History --------- Turn | Location | Event 2 | -11/Junkyard | Discovered new exit (range 16) 82 | -11/Junkyard | Entered Materials 319 | -10/Materials | Build established: Mutant 709 | -10/Materials | Discovered new exit (range 7) 790 | -10/Materials | Discovered new exit (range 4) 1190 | -10/Materials | Discovered new exit (range 15) 1401 | -10/Materials | Repaired Lgt. Treads 3324 | -10/Materials | Discovered new exit (range 3) 3329 | -10/Materials | Entered Subcaves 3349 | -10/Subcaves | Learned location of Zion (-7) 3468 | -10/Subcaves | Shifting Twisted Machinery released Sub. Beam Cannon 3553 | -10/Subcaves | Shifting Twisted Machinery released Sub. Machine Gun 3965 | -10/Subcaves | Core integrity fell below 50% 4239 | -10/Subcaves | Shifting Twisted Machinery released Sub. Shrapnel Launcher 4322 | -10/Subcaves | Ambushed by Subdweller buried in earth 4336 | -10/Subcaves | Ambushed by Subdweller buried in earth 5337 | -10/Subcaves | Shifting Twisted Machinery released Spk. Treads 5349 | -10/Subcaves | Learned Materials emergency access door positions 5515 | -10/Subcaves | Visited 4L-MR0's lab 5563 | -10/Subcaves | Found Power Bank 6067 | -10/Subcaves | Build established: Derelict-Mutant 6274 | -10/Subcaves | Discovered new exit (range 5) 6287 | -10/Subcaves | Learned Materials security intel 6341 | -10/Subcaves | A swath of the cavern ceiling suddenly collapsed 6445 | -10/Subcaves | A swath of the cavern ceiling suddenly collapsed 6669 | -10/Subcaves | Core integrity fell below 20% 6678 | -10/Subcaves | Destroyed by OY-KCX(R) with Subdweller Machine Gun Last Messages --------------- 06118_ Acquired 19 matter. 06121_ Dropped Hrd. Light Armor Plating. 06146_ Acquired 24 matter. 06159_ System corrupted: Heat flow error (+190). 06188_ System corrupted: Matter fused (-6). 06253_ CL&=BIYUF1ZWZSTY,VZDSPQDQ 06268_ RAFSZTFMULU ZVYOLRVV7|5NO9VYMH 06557_ VXRON